bitfinex/quotes_ETHUSD_20250803
["timestamp","ask_amount","ask_price","bid_price","bid_amount"]
[1754245241763,0.001,3491.6,3491.5,5.743]
[1754245242340,0.001,3491.6,3491.5,5.2918]
[1754245244027,0.4838,3491.6,3491.5,4.8248]
[1754245244229,0.4838,3491.6,3491.1,0.002]
[1754245244542,0.1961,3491.5,3491.2,4.341]
[1754245244737,0.001,3491.6,3491.2,4.341]
[1754245245053,0.6789,3491.4,3491.2,4.341]
[1754245245425,0.4828,3491.3,3491.2,4.341]
[1754245251375,0.4828,3491.3,3491.1,0.002]
[1754245251575,0.4828,3491.3,3491.1,4.344]
[1754245251748,0.4828,3491.3,3491.1,4.81]
[1754245251934,30.0,3491.5,3491.2,0.466]
[1754245252136,2.86824707,3491.4,3491.2,0.466]
[1754245252365,30.0,3491.4,3491.1,4.344]
[1754245252668,0.4828,3491.4,3491.1,4.344]
[1754245252858,0.4828,3491.4,3491.2,0.466]
[1754245254252,0.001,3491.6,3491.3,0.9172]
[1754245254573,0.001,3491.6,3491.4,4.342]
[1754245255071,0.001,3491.6,3491.4,4.808]
[1754245256240,0.4838,3491.6,3491.4,4.808]
[1754245256756,0.001,3491.6,3491.4,4.808]
[1754245256956,0.001,3491.6,3491.5,0.466]
[1754245257475,0.001,3491.6,3491.4,4.342]
[1754245257674,0.4838,3491.6,3491.4,4.342]
[1754245258077,0.4838,3491.6,3491.4,4.808]
[1754245258371,0.001,3491.6,3491.4,4.808]
[1754245259842,0.001,3491.6,3491.4,4.342]
[1754245260044,0.001,3491.6,3491.5,0.4676]
[1754245260642,0.001,3491.6,3491.5,0.9307]
[1754245260859,0.001,3491.6,3491.5,1.57566734]
[1754245262568,0.001,3491.6,3491.5,1.045533]
[1754245270389,0.001,3491.6,3491.5,1.07417398]
[1754245270953,0.001,3491.6,3491.5,1.045533]
[1754245273889,0.001,3491.6,3491.5,0.114833]
[1754245274395,0.001,3491.6,3491.5,4.455833]
[1754245274692,0.001,3491.6,3491.5,4.923433]
[1754245274862,0.001,3491.6,3491.5,5.386533]
[1754245280469,0.001,3491.6,3491.5,4.923433]
[1754245281879,0.001,3491.6,3491.5,5.386533]
[1754245283701,0.001,3491.6,3491.5,5.41517398]
[1754245284702,0.001,3491.6,3491.5,5.386533]
[1754245285816,0.001,3491.6,3491.5,5.41517398]
[1754245286190,0.001,3491.6,3491.5,5.386533]
[1754245287223,0.001,3491.6,3491.5,4.923433]
[1754245288075,0.491,3491.6,3491.5,4.455833]
[1754245288282,0.001,3491.6,3491.5,4.923433]
[1754245288597,0.001,3491.6,3491.5,5.386533]
[1754245288930,0.001,3491.6,3491.5,4.923433]
[1754245292625,0.001,3491.6,3491.5,5.405033]
[1754245292989,0.001,3491.6,3491.5,5.97417728]
[1754245293339,0.001,3491.6,3491.5,5.9455363]
[1754245294574,0.001,3491.6,3491.5,6.4955363]
[1754245294844,0.001,3491.6,3491.5,9.4955363]
[1754245295043,0.001,3491.8,3491.6,0.55]
[1754245295210,0.001,3492.0,3491.8,0.55]
[1754245295543,0.001,3492.0,3491.9,8.0628377]
[1754245295840,0.001,3492.0,3491.9,8.0342]
[1754245296228,0.001,3492.0,3491.9,9.104887]
[1754245300556,0.001,3492.8,3491.9,9.104887]
[1754245300739,0.001,3492.8,3492.7,19.65556176]
[1754245300946,0.001,3492.8,3492.7,23.99556176]
[1754245301153,0.001,3492.8,3492.7,24.95146176]
[1754245301457,0.001,3492.8,3492.7,25.09466176]
[1754245304926,0.001,3492.8,3492.7,8.9881]
[1754245305153,0.001,3492.8,3492.7,9.5286033]
[1754245305561,0.001,3492.8,3492.7,9.9805033]
[1754245307748,0.001,3492.8,3492.7,9.71150954]
[1754245308138,0.4519,3492.8,3492.7,4.1356033]
[1754245308449,0.001,3492.8,3492.7,8.8814033]
[1754245310552,0.001,3492.8,3492.7,9.3557033]
[1754245311233,0.001,3492.8,3492.7,9.8373033]
[1754245311434,0.001,3492.8,3492.7,9.3557033]
[1754245314473,0.001,3492.8,3492.7,5.0167033]
[1754245314674,0.001,3492.8,3492.7,9.3547033]
[1754245315172,0.4519,3492.8,3492.7,8.8804033]
[1754245315368,0.4519,3492.8,3492.7,8.3399]
[1754245319273,0.001,3492.8,3492.7,8.3399]
[1754245320678,0.001,3492.8,3492.7,8.7893]
[1754245321581,0.001,3492.8,3492.7,9.2451]
[1754245336968,0.001,3492.8,3492.7,13.4751]
[1754245337158,0.001,3492.8,3492.7,15.30656459]
[1754245337359,0.001,3492.8,3492.7,14.84976459]
[1754245337998,0.001,3492.8,3492.7,15.30556459]
[1754245342800,0.001,3492.8,3492.7,11.07556459]
[1754245343110,0.001,3492.8,3492.7,6.73856459]
[1754245343319,0.001,3492.8,3492.7,11.07556459]
[1754245345370,0.001,3492.8,3492.7,6.28276459]
[1754245345578,0.4937,3492.8,3492.7,5.28336459]
[1754245345879,0.4937,3492.8,3492.7,8.3389]
[1754245346082,0.4937,3492.8,3492.7,9.2441]
[1754245346083,0.001,3492.8,3492.7,9.2441]
[1754245348015,0.001,3493.2,3493.1,19.65556176]
[1754245348208,0.001,3493.2,3493.1,24.13576176]
[1754245348388,0.001,3493.2,3493.1,26.54933794]
[1754245348704,0.001,3493.2,3493.1,27.94823794]
[1754245349426,0.001,3493.2,3493.1,27.49243794]
[1754245350298,0.483,3493.2,3493.1,27.04303794]
[1754245350496,0.483,3493.2,3493.1,22.70603794]
[1754245350698,0.483,3493.2,3493.1,27.04203794]
[1754245351610,0.001,3493.2,3493.1,27.51093794]
[1754245353416,0.001,3493.2,3493.1,27.98233794]
[1754245356399,0.001,3493.2,3493.1,27.51093794]
[1754245358186,0.483,3493.2,3493.1,27.04203794]
[1754245358921,0.483,3493.2,3493.1,20.29246176]
[1754245359144,0.483,3493.2,3493.1,24.62846176]
[1754245359638,0.483,3493.2,3493.1,4.1869]
[1754245359932,0.483,3493.2,3493.1,8.5229]
[1754245361332,0.483,3493.2,3493.1,3.6369]
[1754245361557,0.6811,3493.2,3493.1,7.8297]
[1754245361717,0.6811,3493.2,3493.1,8.3797]
[1754245362101,0.6811,3493.2,3493.1,5.3797]
[1754245364733,0.483,3493.2,3493.1,5.3797]
[1754245365836,0.6811,3493.2,3493.1,1.0437]
[1754245366041,0.6811,3493.2,3493.1,5.3797]
[1754245367104,0.483,3493.2,3493.1,5.3797]
[1754245370116,0.483,3493.2,3493.1,0.4937]
[1754245370316,0.6811,3493.2,3493.1,4.8297]
[1754245376359,0.483,3493.2,3493.1,4.8297]
[1754245380057,0.6811,3493.2,3493.1,4.8307]
[1754245380576,30.6811,3493.2,3492.9,0.002]
[1754245380727,10.0,3493.0,3492.9,4.338]
[1754245381071,30.0,3493.0,3492.9,4.338]
[1754245381228,30.6579,3493.0,3492.9,4.338]
[1754245381424,30.6579,3493.0,3492.9,0.002]
[1754245381631,33.52614707,3493.0,3492.9,0.002]
[1754245382846,52.63170883,3493.0,3492.9,0.002]
[1754245386578,36.52614707,3493.0,3492.9,0.002]
[1754245386889,52.63170883,3493.0,3492.9,0.002]
[1754245388251,52.97464358,3493.0,3492.9,0.002]
[1754245388680,52.63170883,3493.0,3492.9,0.002]
[1754245396182,59.68170883,3493.0,3492.9,0.002]
[1754245397295,59.02380883,3493.0,3492.9,0.002]
[1754245397598,63.82160883,3493.0,3492.9,0.002]
[1754245398987,59.48360883,3493.0,3492.9,0.002]
[1754245399201,47.25624707,3493.0,3492.9,0.4417]
[1754245403174,47.25624707,3493.0,3492.9,0.9043]
[1754245404289,47.25624707,3493.0,3492.9,0.4417]
[1754245404987,42.91824707,3493.0,3492.9,0.9043]
[1754245405168,44.25624707,3493.0,3492.9,0.9043]
[1754245405556,47.25624707,3493.0,3492.9,0.9043]
[1754245406811,42.91824707,3493.0,3492.9,0.8543]
[1754245407014,3.0,3493.0,3492.9,0.8543]
[1754245410193,40.0,3492.8,3492.5,0.002]
[1754245410391,30.0,3492.7,3492.5,0.002]
[1754245411104,33.472,3492.6,3492.5,0.002]
[1754245411306,53.91556176,3492.6,3492.5,0.002]
[1754245421719,53.44356176,3492.6,3492.5,0.002]
[1754245422336,37.338,3492.6,3492.5,0.002]
[1754245423697,37.81,3492.6,3492.5,0.002]
[1754245424032,40.67824707,3492.6,3492.5,0.002]
[1754245428946,40.20624707,3492.6,3492.5,0.002]
[1754245429242,40.20624707,3492.6,3492.5,0.4754]
[1754245432141,40.20624707,3492.6,3492.5,0.002]
[1754245432329,40.67824707,3492.6,3492.5,0.002]
[1754245437646,40.20624707,3492.6,3492.5,0.4761]
[1754245437810,40.20624707,3492.6,3492.5,0.9495]
[1754245439309,40.20624707,3492.6,3492.5,0.002]
[1754245439523,40.20624707,3492.6,3492.5,0.9541]
[1754245440141,37.338,3492.6,3492.5,0.9541]
[1754245440546,33.0,3492.6,3492.5,0.9541]
[1754245450976,33.0,3492.6,3492.5,0.002]
[1754245451158,37.8018,3492.6,3492.5,0.002]
[1754245451660,37.338,3492.6,3492.5,0.9541]
[1754245452266,40.20624707,3492.6,3492.5,0.9541]
[1754245455172,35.86824707,3492.6,3492.5,0.9541]
[1754245455374,35.86824707,3492.6,3492.5,0.002]
[1754245455566,36.33204707,3492.6,3492.5,0.002]
[1754245457178,40.66904707,3492.6,3492.5,0.002]
[1754245457977,40.20524707,3492.6,3492.5,0.002]
[1754245458282,40.20524707,3492.6,3492.5,0.9541]
[1754245459180,35.86824707,3492.6,3492.5,0.9541]
[1754245465805,35.86824707,3492.6,3492.5,0.4677]
[1754245466495,35.86824707,3492.6,3492.5,0.9541]
[1754245467372,35.86824707,3492.6,3492.5,0.4677]
[1754245468312,35.86824707,3492.6,3492.5,0.9541]
[1754245469194,30.0,3492.6,3492.5,0.9462]
[1754245469399,30.0,3492.8,3492.5,0.9462]
[1754245469601,30.0,3492.7,3492.5,0.002]
[1754245469768,30.0,3492.7,3492.6,0.9521]
[1754245470306,30.0,3492.7,3492.6,0.4736]
[1754245470464,30.0,3492.6,3492.5,0.002]
[1754245470863,7.051,3492.9,3492.5,0.9541]
[1754245471177,3.0,3492.8,3492.6,0.9521]
[1754245471386,3.0,3492.8,3492.7,0.9521]
[1754245472594,0.001,3492.9,3492.7,0.9521]
[1754245472794,0.001,3492.9,3492.8,0.4736]
[1754245472996,0.001,3492.9,3492.8,0.9521]
[1754245479613,0.001,3492.9,3492.8,1.813099]
[1754245483232,0.001,3492.9,3492.8,0.860999]
[1754245483636,0.001,3492.9,3492.8,1.334599]
[1754245483935,30.0,3492.8,3492.5,0.002]
[1754245484237,30.0,3492.8,3492.6,0.9521]
[1754245484434,30.0,3492.8,3492.5,0.002]
[1754245484616,30.0,3492.8,3492.7,0.9521]
[1754245485297,30.0,3492.8,3492.7,0.4736]
[1754245486003,0.001,3492.9,3492.7,0.9521]
[1754245486529,0.001,3492.9,3492.5,0.863031]
[1754245486836,0.001,3492.9,3492.8,0.9521]
[1754245491307,0.001,3492.9,3492.8,1.813055]
[1754245493944,0.001,3492.9,3492.8,1.9947605]
[1754245498325,0.001,3492.9,3492.8,2.02339082]
[1754245498843,0.001,3492.9,3492.8,2.57339082]
[1754245500251,0.001,3492.9,3492.8,2.5447605]
[1754245500553,0.001,3492.9,3492.8,6.8797605]
[1754245511778,0.001,3493.2,3492.9,0.55]
[1754245512056,10.0,3495.5,3493.3,3.55]
[1754245512228,0.4537,3494.7,3493.5,0.55]
[1754245512429,0.4537,3494.3,3493.5,0.6932]
[1754245512630,0.4537,3494.3,3493.6,1.0233]
[1754245512829,0.4537,3494.3,3493.6,1.596448]
[1754245513150,0.4537,3494.3,3493.6,2.5038128]
[1754245514266,10.0,3495.6,3493.6,2.5038128]
[1754245514267,0.4547,3494.2,3493.6,2.5038128]
[1754245514755,0.4547,3494.2,3493.6,2.0454128]
[1754245515072,0.4547,3493.7,3493.6,4.448748]
[1754245515366,30.7008,3493.7,3493.6,4.336]
[1754245516037,30.7008,3493.7,3493.4,0.4547]
[1754245516240,30.6998,3493.6,3493.5,4.338]
[1754245516455,0.4537,3493.6,3493.5,4.338]
[1754245516928,0.4537,3493.6,3493.4,0.4547]
[1754245517127,0.4537,3493.6,3493.5,4.337]
[1754245520353,30.0,3493.5,3493.4,0.4547]
[1754245520550,30.0,3493.4,3492.6,0.002]
[1754245520768,30.0,3493.3,3492.8,4.337]
[1754245520968,0.6998,3493.3,3492.8,4.337]
[1754245521258,0.6998,3493.2,3492.8,4.337]
[1754245521458,0.35680471,3493.2,3492.8,4.337]
[1754245521659,0.6998,3493.1,3492.8,4.337]
[1754245521867,0.4537,3493.0,3492.7,0.860997]
[1754245522067,30.2461,3492.9,3492.8,4.338]
[1754245522287,0.99513773,3492.9,3492.8,4.338]
[1754245522594,0.4537,3492.9,3492.8,4.338]
[1754245526796,0.4537,3492.9,3492.6,0.002]
[1754245526994,0.6998,3492.9,3492.6,4.339]
[1754245527298,30.0,3492.8,3492.6,0.002]
[1754245527459,2.86824707,3492.7,3492.6,4.339]
[1754245527658,30.4537,3492.7,3492.6,4.339]
[1754245527858,0.4537,3492.7,3492.6,4.339]
[1754245528962,0.4537,3492.7,3492.6,0.002]
[1754245534900,0.4871,3492.9,3492.6,0.002]
[1754245535098,30.0,3492.8,3492.6,0.002]
[1754245535302,30.0,3492.7,3492.6,0.002]
[1754245536967,30.0,3492.7,3492.6,0.4635]
[1754245537795,0.4871,3492.7,3492.6,0.002]
[1754245539999,0.4871,3492.9,3492.6,0.002]
[1754245540193,30.0,3492.8,3492.6,0.4635]
[1754245540393,0.35680471,3493.2,3492.7,0.4615]
[1754245540592,0.35680471,3493.2,3492.6,0.4806]
[1754245540593,3.0,3493.5,3492.8,0.4615]
[1754245540790,30.0,3493.6,3492.8,0.4615]
[1754245540791,0.4871,3493.6,3492.8,4.7965]
[1754245540991,30.0,3493.5,3492.9,0.4786]
[1754245541179,30.0,3493.5,3492.9,0.9401]
[1754245541682,30.0,3493.5,3493.0,0.9401]
[1754245541880,30.0,3493.5,3493.1,0.9401]
[1754245542081,30.0,3493.6,3493.2,0.9401]
[1754245542278,30.0,3493.6,3493.0,4.337]
[1754245542279,30.0,3493.5,3493.0,4.337]
[1754245542502,30.0,3493.6,3493.3,0.9401]
[1754245542716,30.0,3493.6,3493.3,0.4786]
[1754245543014,30.0,3493.6,3493.4,0.4615]
[1754245544102,0.001,3493.7,3493.5,0.9401]
[1754245544605,0.001,3493.7,3493.6,0.9401]
[1754245545600,0.001,3493.7,3493.6,0.4615]
[1754245545799,0.001,3493.7,3493.6,0.9401]
[1754245549524,0.001,3493.7,3493.6,1.054858]
[1754245549683,0.001,3493.7,3493.6,1.59690634]
[1754245550286,0.001,3493.7,3493.6,2.1755301]
[1754245550486,0.001,3493.7,3493.6,2.14690634]
[1754245550717,0.001,3493.7,3493.6,18.28109186]
[1754245551011,0.001,3493.7,3493.6,21.3956681]
[1754245553021,0.001,3494.2,3493.7,3.55]
[1754245553202,0.001,3494.2,3494.0,19.65556176]
[1754245553580,0.001,3494.2,3494.0,20.73886176]
[1754245555212,0.001,3494.2,3494.0,25.07586176]
[1754245558892,0.001,3494.2,3494.1,4.49591967]
[1754245559082,0.001,3494.2,3494.1,4.92961967]
[1754245561231,0.001,3494.2,3494.1,5.41381967]
[1754245562335,0.001,3494.2,3494.1,9.7202]
[1754245562689,0.001,3494.2,3494.1,5.3852]
[1754245562889,0.001,3494.2,3494.1,9.7202]
[1754245563430,0.001,3494.2,3494.1,5.3852]
[1754245563602,0.001,3494.2,3494.1,9.7202]
[1754245563924,0.001,3494.2,3494.1,5.3852]
[1754245564089,0.001,3494.2,3494.1,9.7192]
[1754245566920,0.2461,3495.7,3494.1,9.8624]
[1754245567124,0.4842,3495.2,3494.8,0.55]
[1754245567325,0.001,3496.2,3495.2,0.55]
[1754245567625,0.4842,3495.7,3495.4,0.55]
[1754245567792,0.2471,3496.1,3495.5,4.36860821]
[1754245567989,0.4842,3496.0,3495.6,0.55]
[1754245568193,0.4842,3496.0,3495.7,4.37160657]
[1754245568393,0.4842,3496.0,3495.8,4.343]
[1754245571535,0.4842,3496.0,3495.9,0.4842]
[1754245574238,0.001,3496.1,3495.9,0.4842]
[1754245574406,0.4852,3496.1,3496.0,4.36960411]
[1754245574603,0.4852,3496.1,3496.0,4.341]
[1754245575045,0.001,3496.1,3496.0,4.8262]
[1754245575607,0.4852,3496.1,3496.0,4.8262]
[1754245576203,0.001,3496.1,3496.0,4.8262]
[1754245576833,0.4852,3496.1,3496.0,4.8262]
[1754245577640,0.001,3496.1,3496.0,4.8262]
[1754245577814,0.001,3496.1,3496.0,5.35460058]
[1754245578019,0.001,3496.1,3496.0,5.81240469]
[1754245578204,0.001,3496.1,3496.0,5.78380058]
[1754245579931,0.001,3496.1,3496.0,5.35460058]
[1754245580138,0.001,3496.1,3496.0,5.81240469]
[1754245580334,0.001,3496.1,3496.0,5.78380058]
[1754245581552,0.001,3496.1,3496.0,22.43936234]
[1754245581717,0.001,3496.1,3496.0,22.92746234]
[1754245583015,0.001,3496.1,3496.0,6.82190058]
[1754245583450,0.001,3496.1,3496.0,6.33180058]
[1754245583665,0.001,3496.1,3496.0,6.81990058]
[1754245590265,10.0,3497.8,3496.1,0.55]
[1754245590439,33.0,3497.8,3496.3,0.55]
[1754245590760,30.0,3497.2,3495.5,0.58320082]
[1754245590958,30.0,3497.2,3494.6,6.88]
[1754245590959,3.0,3496.9,3495.6,4.361]
[1754245591162,40.0,3496.6,3495.6,4.361]
[1754245591468,0.2461,3497.4,3495.7,17.65892076]
[1754245591652,0.705,3497.9,3496.5,16.10556176]
[1754245591653,0.4884,3497.8,3496.5,16.10556176]
[1754245591962,0.4884,3498.4,3497.0,16.65556176]
[1754245592163,0.4884,3498.4,3497.5,3.0]
[1754245592367,0.4884,3498.4,3497.7,3.0]
[1754245592527,0.4884,3498.4,3497.8,4.39558939]
[1754245592726,0.4884,3498.4,3497.8,5.27889833]
[1754245593283,0.4884,3498.9,3498.3,0.55]
[1754245593587,0.4884,3498.9,3498.4,4.368]
[1754245593787,0.62502032,3498.8,3498.5,4.37]
[1754245593997,0.4884,3498.7,3498.5,4.37]
[1754245594288,0.4884,3499.3,3498.7,0.55]
[1754245594487,4.371,3500.9,3498.7,0.55]
[1754245594488,16.10556176,3501.5,3498.9,0.55]
[1754245594642,30.0,3501.0,3499.1,0.55]
[1754245594840,30.0,3501.0,3498.8,4.371]
[1754245594841,30.0,3501.1,3499.3,3.55]
[1754245595034,2.86824707,3501.0,3499.5,3.55]
[1754245595263,0.4884,3502.0,3500.0,3.55]
[1754245595483,0.4884,3501.3,3500.3,0.55]
[1754245595637,0.4884,3501.3,3500.4,0.91606816]
[1754245595842,0.4884,3501.3,3500.5,4.4]
[1754245596039,0.7345,3501.3,3500.3,0.55]
[1754245596235,30.0,3501.1,3500.1,0.1432]
[1754245596480,3.60274707,3501.0,3499.7,0.436]
[1754245596774,0.4884,3500.9,3499.9,3.436]
[1754245596975,0.4884,3501.3,3500.1,0.55]
[1754245597175,0.4884,3501.3,3500.6,0.1432]
[1754245597377,3.0,3501.1,3500.7,4.408]
[1754245597546,0.7345,3501.0,3500.5,4.408]
[1754245597739,3.0,3502.3,3499.8,0.8875]
[1754245597740,0.4884,3500.9,3499.8,0.8875]
[1754245597937,0.4884,3501.2,3500.0,3.0]
[1754245598136,20.03390148,3503.2,3500.2,0.55]
[1754245598137,10.0,3503.0,3500.2,0.55]
[1754245598385,0.4884,3501.6,3500.4,0.55]
[1754245598595,0.2461,3501.5,3500.3,4.411]
[1754245598792,0.2461,3501.5,3500.4,0.55]
[1754245598955,0.2461,3501.5,3499.9,3.83125]
[1754245598956,0.4884,3501.4,3500.1,0.436]
[1754245599301,3.0,3501.1,3499.6,4.412]
[1754245599579,3.60274707,3501.0,3499.7,3.0]
[1754245599784,30.7345,3500.9,3499.8,4.419]
[1754245600114,0.4884,3500.8,3499.9,4.419]
[1754245600247,0.2461,3500.7,3498.8,0.436]
[1754245600442,0.4884,3500.6,3498.9,0.79753946]
[1754245600642,40.0,3500.3,3498.9,5.21553946]
[1754245600975,30.0,3500.1,3499.0,4.418]
[1754245601141,3.0,3500.3,3499.0,4.418]
[1754245601475,0.4884,3500.0,3498.9,0.436]
[1754245601774,0.4884,3500.6,3499.0,4.99557959]
[1754245602074,0.4884,3500.6,3499.2,0.55]
[1754245602277,0.4884,3500.6,3499.4,0.55]
[1754245602579,0.4884,3500.6,3499.5,5.33407551]
[1754245602764,0.4884,3501.0,3499.7,0.55]
[1754245602956,0.4884,3501.0,3499.8,0.91607306]
[1754245603150,0.4884,3501.0,3499.9,0.436]
[1754245603382,0.4884,3501.0,3500.0,4.417]
[1754245604283,30.2461,3500.9,3497.6,20.03390148]
[1754245604485,3.0,3501.3,3497.6,20.03390148]
[1754245604486,40.0,3500.6,3498.9,0.436]
[1754245604780,3.0,3500.3,3498.6,11.728]
[1754245604981,40.0,3500.4,3498.6,12.1795]
[1754245604982,40.0,3500.0,3498.6,12.1795]
[1754245605285,40.0,3499.8,3498.6,6.873]
[1754245605470,0.55,3500.8,3498.7,4.419]
[1754245605471,40.0,3499.6,3498.7,4.419]
[1754245605672,0.4884,3499.5,3498.7,4.44758204]
[1754245605978,0.4884,3499.5,3498.7,4.419]
[1754245606557,0.4884,3499.5,3498.8,4.419]
[1754245606758,30.0,3499.4,3498.0,1.310957]
[1754245606994,40.0,3499.2,3498.1,4.418]
[1754245607165,0.4884,3499.1,3498.2,0.02858613]
[1754245607367,30.2461,3499.0,3497.9,0.36022966]
[1754245607594,30.0,3498.8,3497.9,4.418]
[1754245607985,0.4884,3498.7,3497.4,3.436]
[1754245608292,0.4884,3498.7,3497.7,4.418]
[1754245608590,0.4884,3498.7,3497.7,4.44659021]
[1754245608793,0.4884,3498.7,3497.8,0.436]
[1754245610773,0.4884,3498.7,3497.9,0.4515]
[1754245610978,0.4884,3498.7,3497.9,4.8665]
[1754245612308,0.4884,3498.7,3497.8,0.436]
[1754245612476,0.4884,3498.7,3498.1,3.0]
[1754245614225,0.4884,3498.7,3497.5,0.1432]
[1754245614374,0.4884,3498.7,3497.7,3.0]
[1754245614710,30.0,3498.6,3497.6,0.436]
[1754245614866,3.35664707,3498.5,3497.8,4.412]
[1754245615071,3.35664707,3498.5,3497.6,0.436]
[1754245615072,0.4884,3498.4,3497.6,0.436]
[1754245615285,0.4884,3498.4,3497.7,3.0]
[1754245615715,0.4884,3498.4,3497.7,4.411]
[1754245617385,30.0,3498.3,3497.4,3.0]
[1754245617584,3.35664707,3498.2,3497.6,4.411]
[1754245617791,0.4884,3498.1,3497.6,4.411]
[1754245618018,0.4884,3498.0,3497.6,4.411]
[1754245618339,0.4884,3498.0,3497.4,3.0]
[1754245618340,0.4884,3497.9,3497.4,4.409]
[1754245618684,30.0,3498.1,3497.5,0.436]
[1754245618884,2.86824707,3498.0,3497.5,0.436]
[1754245619086,3.55,3499.1,3497.6,0.8892]
[1754245619315,30.0,3498.4,3497.6,0.8892]
[1754245620282,0.4937,3498.5,3497.6,0.8892]
[1754245620842,3.0,3498.7,3497.7,0.8892]
[1754245621132,0.4937,3498.6,3497.7,0.8892]
[1754245621317,0.37398,3498.5,3497.7,0.4387]
[1754245621686,0.4937,3498.4,3497.7,0.4387]
[1754245622714,0.4937,3498.4,3497.7,0.8892]
[1754245623626,10.0,3499.8,3497.8,0.91778939]
[1754245623627,0.4937,3499.3,3497.8,0.91778939]
[1754245623845,0.4937,3499.3,3497.9,0.8892]
[1754245623846,30.0,3499.2,3497.9,0.8892]
[1754245623986,40.0,3499.0,3498.1,3.0]
[1754245624190,30.0,3499.7,3498.2,1.06098613]
[1754245624426,30.0,3499.7,3498.3,0.8892]
[1754245624612,30.0,3499.7,3498.2,0.17178613]
[1754245624613,30.0,3499.7,3498.4,0.91778449]
[1754245624814,1.01449461,3500.0,3498.4,0.02858449]
[1754245624815,30.4937,3499.9,3498.4,0.02858449]
[1754245625040,30.0,3499.7,3498.5,0.8892]
[1754245625238,1.01449461,3500.0,3498.8,0.1432]
[1754245625418,1.01449461,3500.0,3498.9,4.417]
[1754245625585,1.01449461,3500.0,3499.0,0.02857959]
[1754245625791,1.01449461,3500.0,3499.1,0.8892]
[1754245626003,1.01449461,3500.0,3499.2,1.71982]
[1754245626232,1.01449461,3500.0,3499.3,0.8892]
[1754245626384,1.01449461,3500.0,3499.3,0.4505]
[1754245626592,1.01449461,3500.0,3499.4,0.4387]
[1754245626791,1.01449461,3500.0,3499.5,0.4505]
[1754245627029,1.01449461,3500.0,3499.6,0.02857469]
[1754245627344,1.01449461,3500.0,3499.7,0.4505]
[1754245627714,1.01449461,3500.0,3499.8,0.4387]
[1754245627909,1.01449461,3500.0,3499.6,4.416]
[1754245628111,1.01449461,3500.0,3499.8,0.4387]
[1754245628837,1.01449461,3500.0,3499.6,4.8665]
[1754245628989,1.01449461,3500.0,3499.3,0.8892]
[1754245629189,1.01449461,3500.0,3499.6,4.416]
[1754245629442,1.01449461,3500.0,3499.7,0.8892]
[1754245629739,1.01449461,3500.0,3499.8,0.8892]
[1754245630093,1.01449461,3500.0,3499.9,0.4387]
[1754245630297,1.01449461,3500.0,3499.8,0.4505]
[1754245630298,1.75429461,3500.0,3499.2,4.414]
[1754245630615,0.66912946,3499.9,3499.2,4.414]
[1754245630921,0.17542946,3499.9,3499.3,0.4387]
[1754245631344,0.66912946,3499.9,3499.3,4.417]
[1754245631536,0.17542946,3499.9,3499.3,4.417]
[1754245631706,1.01449461,3500.0,3499.4,0.4505]
[1754245631913,1.01449461,3500.0,3499.5,0.4387]
[1754245632130,1.01449461,3500.0,3499.6,0.8892]
[1754245632325,1.01449461,3500.0,3499.7,0.8892]
[1754245632950,1.01449461,3500.0,3499.8,0.8892]
[1754245633107,1.01449461,3500.0,3499.9,0.4387]
[1754245633308,1.50819461,3500.0,3499.4,0.4387]
[1754245633574,0.64451946,3499.9,3499.2,4.416]
[1754245633868,30.0,3499.8,3498.5,0.4387]
[1754245634155,0.4937,3499.7,3498.6,3.0]
[1754245634655,0.2461,3499.6,3498.7,4.415]
[1754245635074,1.01449461,3500.0,3498.8,0.46728122]
[1754245635249,1.01449461,3500.0,3498.9,0.02858041]
[1754245635449,0.4937,3499.9,3499.0,0.8892]
[1754245635762,0.15081946,3499.8,3498.7,4.8745]
[1754245636073,30.0,3499.7,3498.7,4.424]
[1754245636232,30.0,3499.6,3498.7,4.424]
[1754245636443,0.4937,3499.7,3498.8,0.92497]
[1754245636763,0.64451946,3499.8,3498.8,0.92497]
[1754245636923,0.64451946,3499.8,3498.9,0.4505]
[1754245637119,0.4937,3499.8,3499.0,0.46727959]
[1754245637458,0.4937,3499.8,3499.0,0.4387]
[1754245637963,1.01449461,3500.0,3499.1,0.4505]
[1754245638164,1.01449461,3500.0,3499.2,0.4387]
[1754245638464,1.01449461,3500.0,3499.3,0.4505]
[1754245638664,1.01449461,3500.0,3499.4,0.4387]
[1754245639474,1.01449461,3500.0,3499.5,0.4505]
[1754245639773,1.01449461,3500.0,3499.6,0.4387]
[1754245639977,1.50819461,3500.0,3499.3,0.4387]
[1754245640183,1.50919461,3500.0,3499.1,0.4387]
[1754245640376,1.50919461,3500.0,3499.1,4.8697]
[1754245640676,1.66021407,3500.0,3499.1,5.3202]
[1754245640841,1.66021407,3500.0,3499.2,0.8892]
[1754245640842,1.01549461,3500.0,3499.2,0.8892]
[1754245641041,1.01549461,3500.0,3499.3,0.8892]